[Event "25th Nepal Championship 2025"]
[Site "Hetauda"]
[Date "2025.01.30"]
[Round "8.4"]
[White "Subedi, Rajan"]
[Black "Phuyal, Aashish"]
[Result "0-1"]
[Annotator "TA"]
[ECO "D00"]
[WhiteElo "1982"]
[BlackElo "1981"]
[PlyCount "105"]
[EventDate "2025.01.24"]
[EventType "tourn"]
[EventCountry "NEP"]
[SourceTitle "playchess.com"]
[Source "ChessBase"]
[SourceQuality "1"]
[TimeControl "5400+30"]

{[%evp 9,105,-8,0,-22,0,-29,-14,-12,-20,-27,-28,-30,-32,-29,-26,-28,-27,-25,39,6,50,-27,-32,-31,-31,-26,-30,-21,-27,-22,-11,-21,-21,-18,-23,-20,-15,-33,0,-14,-8,-45,-37,-36,-45,-61,-16,-24,0,0,-6,-58,-45,-64,-7,-8,-2,0,0,-8,-10,-8,-12,-13,42,43,52,45,51,45,50,59,133,133,133,133,133,133,1513,1510,1206,1105,537,537,4137,4137,4137,4133,4137,4137,29977,4137,29984,4137,29987,29988,29988,29989]} 1. d4 {[%emt 0:00:04]} Nf6 {[%emt 0:00:34]} 2. Nc3 {[%emt 0:05:23]} d5 {[%emt 0:01:35]} 3. Bf4 {[%emt 0:00:26]} e6 {[%emt 0:01:48]} 4. Nb5 {[%emt 0:01:18]} Na6 {[%emt 0:00:08][%cal Bb8a6,Ba6b4,Bb4d3][%mdl 32]} 5. e3 {[%emt 0:00:07]} Be7 {[%emt 0:00:52]} 6. g4 {[%emt 0:01:53] D00: 1 d4 d5: Unusual lines.} O-O {[%emt 0:02:06]} 7. Bd3 {[%emt 0:01:29]} (7. g5 $5 Ne4 8. h4 $11) 7... c6 {[%emt 0:06:26]} 8. Nc3 {[%emt 0:00:46] The position is equal.} Nb4 {[%emt 0:00:34]} 9. g5 {[%emt 0:02:31]} Nxd3+ {[%emt 0:00:47]} 10. cxd3 {[%emt 0:01:14]} Nd7 {[%emt 0:03:20]} 11. Nf3 {[%emt 0:00:45]} Qe8 $146 {[%emt 0:14:35]} (11... c5 12. dxc5 Nxc5 13. b4 Nd7 14. a3 d4 15. Ne4 dxe3 16. fxe3 a5 17. Qc1 e5 {0-1 Jonsson,G (2036)-Pham,K (2244) Hilversum op 2022 (3)}) 12. h4 {[%emt 0:00:53]} f6 {[%emt 0:01:44][%cal Oe6e5]} 13. Qe2 {[%emt 0:00:26]} Qh5 {[%emt 0:04:24]} (13... a5 $11) 14. O-O-O {[%emt 0:00:50]} e5 {[%emt 0:06:50]} 15. dxe5 {[%emt 0:05:43]} (15. gxf6 $14 exf4 16. fxe7) 15... fxe5 $11 {[%emt 0:00:15]} 16. Nxe5 {[%emt 0:00:35]} Qxe2 {[%emt 0:00:12]} 17. Nxe2 {[%emt 0:00:07]} Nxe5 {[%emt 0:00:10]} 18. Bxe5 {[%emt 0:00:10]} Rxf2 {[%emt 0:00:44]} 19. Nf4 {[%emt 0:03:51]} Bf5 {[%emt 0:23:19]} 20. Rdf1 {[%emt 0:01:03]} Rxf1+ {[%emt 0:01:41]} 21. Rxf1 {[%emt 0:00:08][%cal Of4d5]} Rf8 {[%emt 0:00:28][%cal Of5d3]} 22. Kd2 {[%emt 0:00:48]} Bb4+ {[%emt 0:05:47]} 23. Bc3 {[%emt 0:01:37]} Be7 {[%emt 0:05:05]} 24. a3 {[%emt 0:01:31]} Bd7 {[%emt 0:02:17]} 25. Rf2 {[%emt 0:08:57]} Bd6 {[%emt 0:00:59]} 26. Ke1 {[%emt 0:05:16]} c5 {[%emt 0:05:20][%cal Od5d4]} 27. Nh5 {[%emt 0:05:26]} (27. Nxd5 Bg3 28. Nf4 (28. Ne7+ $2 Kh8 $19) 28... Bxh4 $19 (28... Bxf2+ 29. Kxf2 Rf7 30. Ke1 $15)) 27... Rxf2 {[%emt 0:02:26]} 28. Kxf2 $15 {[%emt 0:00:07][%mdl 4096] Endgame KBB-KBN} Bf8 {[%emt 0:03:39]} 29. Be5 {[%emt 0:00:41]} Bc6 {[%emt 0:01:27]} 30. d4 {[%emt 0:02:47]} ({Better is} 30. Nf4 $11) 30... c4 $1 {[%emt 0:00:36]} 31. Nf4 {[%emt 0:01:18][%cal Oe3e4]} Kf7 {[%emt 0:00:06]} (31... c3 $1 $15 32. bxc3 Bxa3) 32. e4 $11 {[%emt 0:00:36]} dxe4 {[%emt 0:00:49][%cal Oc4c3] White should prevent ...c3!.} 33. Ke3 {[%emt 0:00:06]} Ba4 {[%emt 0:02:08][%cal Oc4c3]} 34. Kxe4 {[%emt 0:01:14]} (34. d5 $5) 34... Bc2+ {[%emt 0:00:22]} 35. Kd5 {[%emt 0:01:08]} Bb3 {[%emt 0:01:19] ...c3+ is the strong threat.} 36. Ke4 {[%emt 0:00:27]} b5 {[%emt 0:01:20]} (36... c3 $11 37. bxc3 Bc2+ 38. Ke3 Bxa3) 37. d5 $14 {[%emt 0:00:28]} b4 {[%emt 0:00:58]} 38. axb4 {[%emt 0:00:30]} Bxb4 {[%emt 0:00:01]} 39. d6 {[%emt 0:00:57]} a5 {[%emt 0:00:45]} 40. h5 {[%emt 0:03:56][%cal Bh4h5,Bh5g6][%mdl 32]} Bd2 {[%emt 0:01:52]} ({Black should play} 40... Ke8 $14) 41. g6+ $16 {[%emt 0:01:42]} hxg6 {[%emt 0:00:13]} 42. hxg6+ {[%emt 0:00:05]} Ke8 {[%emt 0:00:10] [#]} 43. Ne6 $1 {[%emt 0:00:49][%cal Oe6c5]} (43. Bxg7 Bc2+ 44. Kf3 Bxf4 45. Kxf4 Kd7 $14 (45... Bxg6 46. Bc3 $14)) 43... c3 $2 {[%emt 0:01:05][%mdl 8192] [#] This costs Black the game.} (43... Bb4 $16) 44. d7+ $1 $18 {[%emt 0:04:36]} (44. Nxg7+ Kd7 45. Kd3 (45. bxc3 Bc2+ 46. Kd5 Bxg6 $15) 45... Bc4+ (45... cxb2 46. Bxb2 Bb4 47. Nf5 $15) 46. Kc2 (46. Kxc4 $2 c2 $19) 46... cxb2 $11) 44... Kxd7 {[%emt 0:00:28]} 45. Nc5+ {[%emt 0:00:06]} (45. Nxg7 $2 c2 46. Bc3 c1=Q $19 (46... c1=R $2 47. Bxd2 Rc4+ 48. Ke3 $19)) 45... Ke7 {[%emt 0:00:35]} 46. Nxb3 {[%emt 0:00:25]} a4 {[%emt 0:00:36][%cal Ba5a4,Ba4a3][%mdl 32]} 47. Na1 {[%emt 0:00:35]} ({Worse is} 47. Bxc3 Bxc3 (47... axb3 $2 {is the wrong capture.} 48. Bxd2 Kf6 49. Bc3+ Kxg6 50. Kd5 $18) 48. Nc5 Bxb2 49. Nxa4 Ba1 $11) 47... cxb2 {[%emt 0:00:31]} 48. Bxb2 {[%emt 0:00:15]} a3 {[%emt 0:00:25]} 49. Bxg7 {[%emt 0:00:18] aiming for Nb3.} Bc1 {[%emt 0:00:04]} 50. Be5 {[%emt 0:01:23] White threatens Kf5 and mate.} Bb2 {[%emt 0:00:14]} 51. Kf5 {[%emt 0:00:50]} (51. Nb3 $142 Ke6 52. Nd4+ Ke7 53. Nc6+ Ke8 54. g7 Kf7 55. Ne7 Kxe7 56. g8=Q (56. g8=R Bc1 $18)) 51... Kf8 {[%emt 0:00:27]} 52. Nb3 {[%emt 0:00:17]} Kg8 {[%emt 0:00:16]} 53. Bxb2 {[%emt 0:00:15][%mdl 32768] Weighted Error Value: White=0.25 (precise) /Black=0.71 Loss on time!?  Loses game:     	---       	Black=1      Mistake:       	White=2     	Black=4      Inaccurate:     	White=3     	Black=3      OK:         	White=11    	Black=15     Best:        	White=4     	Black=4      Strong:       	White=2     	Black=1} 0-1

[Event "25th Nepal Championship 2025"]
[Site "Hetauda"]
[Date "2025.01.30"]
[Round "8.5"]
[White "Rai, Dhiren"]
[Black "Rajbhandari, Rijendra"]
[Result "0-1"]
[Annotator "TA"]
[ECO "B13"]
[WhiteElo "1878"]
[BlackElo "2016"]
[PlyCount "70"]
[EventDate "2025.01.24"]
[EventType "tourn"]
[EventCountry "NEP"]
[SourceTitle "playchess.com"]
[Source "ChessBase"]
[SourceQuality "1"]
[TimeControl "5400+30"]

{[%evp 12,70,42,0,12,0,0,0,12,12,33,-3,0,-10,-3,-12,-16,-46,-37,-43,-41,-48,-44,-73,-81,-71,-65,-95,-90,-104,-108,-131,-138,-187,-186,-188,-212,-249,-74,-70,-82,-114,-99,-335,-325,-572,-559,-1414,-1389,-1347,-1321,-2283,-704,-1134,-702,-710,-704,-682,-677,-786,-778]} 1. e4 {[%emt 0:00:18]} c6 {[%emt 0:00:17]} 2. Nf3 {[%emt 0:00:28]} d5 {[%emt 0:00:08]} 3. exd5 {[%emt 0:00:06]} cxd5 {[%emt 0:00:04]} 4. d4 {[%emt 0:00:03]} Nc6 {[%emt 0:00:15]} 5. Bd3 {[%emt 0:01:15]} Qc7 {[%emt 0:01:14]} 6. O-O {[%emt 0:01:35]} Bg4 {[%emt 0:00:39]} 7. c3 {[%emt 0:00:10]} Nf6 {[%emt 0:00:10] B13: Caro-Kann: Exchange Variation and Panov-Botvinnik Attack.} 8. Re1 {[%emt 0:00:32]} e6 {[%emt 0:00:17]} 9. Bg5 {[%emt 0:01:58]} Be7 {[%emt 0:00:07] The position is equal.} 10. Nbd2 {[%emt 0:00:18]} O-O {[%emt 0:00:19]} 11. b4 $146 {[%emt 0:09:39]} (11. Qc2 h6 12. Bh4 Bxf3 13. Nxf3 Rac8 14. Bg3 Bd6 15. Qe2 Nh5 16. Bxd6 Qxd6 17. g3 g6 18. Rad1 Rfe8 19. Bb1 Qf8 20. h4 Ng7 21. Ne5 Nxe5 {½-½ Vrkota,M (2082)-Hajek,J (2024) Pardubice Region-chT 2223 2022 (9.1)}) 11... Rfc8 {[%emt 0:03:35]} 12. a4 {[%emt 0:02:43]} Ne8 {[%emt 0:04:28] [#]} 13. Qb1 {[%emt 0:10:07] A sharp opening} h6 {[%emt 0:03:09]} 14. Bxe7 {[%emt 0:04:20]} Nxe7 {[%emt 0:00:28][%csl Oc3] Black attacks a weakness} 15. Ra3 {[%emt 0:00:48]} Nd6 {[%emt 0:00:19]} 16. Ne5 {[%emt 0:00:53]} Bf5 {[%emt 0:00:23]} 17. g4 {[%emt 0:01:11]} Bxd3 {[%emt 0:00:27]} 18. Qxd3 {[%emt 0:00:09]} Nc6 {[%emt 0:00:15]} 19. Nef3 {[%emt 0:00:58]} Qe7 {[%emt 0:05:57]} 20. Re3 {[%emt 0:01:42]} Rc7 {[%emt 0:08:31]} 21. Ra1 {[%emt 0:00:58]} Rac8 {[%emt 0:00:22]} 22. Kh1 {[%emt 0:02:02]} (22. h3 $17) 22... Qf6 $19 {[%emt 0:07:06]} 23. Rg1 {[%emt 0:02:17]} Ne7 {[%emt 0:01:45] Black has strong rooks and is better} 24. Qc2 {[%emt 0:06:31]} Nc4 $2 {[%emt 0:04:24]} (24... h5 $19 {and Black stays clearly on top. ...hxg4 is the strong threat.} 25. h3 Ng6) 25. Nxc4 $17 {[%emt 0:00:26]} Rxc4 {[%emt 0:00:06]} ({Much worse is} 25... dxc4 26. Ne5 $11) 26. Qd2 {[%emt 0:00:29] [#]} ({Avoid the trap} 26. Ne5 $2 Rxd4 27. Qe2 Rf4 $19) 26... Qf4 {[%emt 0:04:17]} 27. Ne5 $2 {[%emt 0:01:39] This move loses the game for White.} (27. Rg3 $17) 27... Rxc3 $1 $19 {[%emt 0:01:15]} 28. Rgg3 $2 {[%emt 0:02:53]} (28. Re2 Qxd2 29. Rxd2) 28... Rc2 {[%emt 0:01:09] Black is clearly winning.} 29. Qd3 {[%emt 0:00:12]} Qxf2 {[%emt 0:00:38][%csl Gc2][%cal Rf2h2]} 30. Nf3 {[%emt 0:01:06]} Rc1+ {[%emt 0:02:10]} 31. Rg1 {[%emt 0:00:40]} Rxg1+ {[%emt 0:00:16]} (31... R8c2 $142 32. Qxc2 Rxc2 (32... Qxc2 $2 33. Ne5 $19)) 32. Nxg1 {[%emt 0:00:13]} Rc2 {[%emt 0:00:15][%csl Gc2][%cal Rf2h2]} 33. Re2 {[%emt 0:00:18]} Rxe2 {[%emt 0:01:42]} 34. Qxe2 {[%emt 0:00:18]} Qxd4 {[%emt 0:00:09]} 35. Nf3 {[%emt 0:00:37]} Qxg4 {[%emt 0:00:58] Weighted Error Value: White=0.82/Black=0.50  Loses game:     	White=1     	---        Missed win:     	---       	Black=1      Mistake:       	White=2     	---        Inaccurate:     	White=6     	---        OK:         	White=1     	Black=12     Best:        	White=1     	---        Strong:       	---       	Black=1} 0-1

[Event "25th Nepal Championship 2025"]
[Site "Hetauda"]
[Date "2025.01.30"]
[Round "8.6"]
[White "Jaiswal, Rupesh"]
[Black "Tandukar, Nabin"]
[Result "1-0"]
[Annotator "TA"]
[ECO "B07"]
[WhiteElo "2093"]
[BlackElo "1920"]
[PlyCount "163"]
[EventDate "2025.01.24"]
[EventType "tourn"]
[EventCountry "NEP"]
[SourceTitle "playchess.com"]
[Source "ChessBase"]
[SourceQuality "1"]
[TimeControl "5400+30"]

{[%evp 9,163,25,76,75,119,139,125,120,119,143,127,114,124,141,261,266,262,197,186,69,73,71,58,55,58,52,50,45,35,52,21,3,16,-9,-10,-9,0,0,-2,-4,22,6,16,15,20,25,18,18,37,35,43,19,20,-10,-12,-8,-14,-8,-14,-14,-12,-12,-15,-12,-16,-18,0,-7,-7,-7,0,0,0,-2,0,-7,0,0,0,0,-8,-8,-8,-31,-8,-35,-15,-14,-12,-19,16,18,26,14,66,66,65,65,170,151,164,160,296,243,183,167,240,154,341,134,462,284,579,134,569,555,495,383,351,329,5185,2591,5169,3260,1843,2202,29977,29978,29981,29980,29983,29982,29969,29970,29965,29964,6211,5522,29984,29985,29985,29986,29986,29983,29983,29984,29984,29985,29992,29986,29986,29987,29990,29991,29991,29991]} 1. d4 {[%emt 0:00:03]} Nf6 {[%emt 0:00:10]} 2. Bf4 {[%emt 0:00:07]} d6 {[%emt 0:00:09]} 3. Nc3 {[%emt 0:00:07]} g6 {[%emt 0:00:25]} 4. e4 {[%emt 0:00:15]} Bg7 {[%emt 0:00:02]} 5. Qd2 {[%emt 0:00:07]} h6 {[%emt 0:01:22]} (5... O-O $11 {remains equal.}) 6. O-O-O $16 {[%emt 0:00:16] B07: Pirc Defence: Miscellaneous Systems.} Nbd7 {[%emt 0:00:17]} 7. e5 {[%emt 0:02:08]} Nh5 {[%emt 0:00:40]} 8. Be3 $146 {[%emt 0:00:22] White is better.} (8. e6 fxe6 9. Bd3 Kf7 10. Nh3 c6 11. Qe2 Nf8 12. Rhe1 Qa5 13. Bd2 Qb6 14. Qf3+ {0-1 Melillo,L (2274)-Brozyna,M (2259) Titled Tuesday intern op 23rd Apr Late blitz 2024 (6)}) 8... dxe5 {[%emt 0:00:10]} 9. dxe5 {[%emt 0:00:04]} Bxe5 {[%emt 0:00:11]} 10. Nf3 {[%emt 0:04:28]} (10. Bxh6 $2 Rxh6 11. Kb1 Bf4 $19) 10... Bg7 {[%emt 0:00:10]} 11. Bc4 {[%emt 0:03:38] White is much more active. The black rooks are passive.} Nhf6 {[%emt 0:00:11]} (11... e6 $16) 12. Rhe1 $18 {[%emt 0:03:28][%cal Oe3c5]} c6 {[%emt 0:00:28] [#]} 13. Ne5 $1 {[%emt 0:08:12][%mdl 512]} Nd5 {[%emt 0:14:30]} 14. Nxd7 {[%emt 0:27:55]} (14. Nxc6 $18 bxc6 15. Nxd5) 14... Bxc3 $14 {[%emt 1:18:45]} 15. bxc3 {[%emt 0:04:40] A sharp opening} Bxd7 {[%emt 0:00:00]} (15... Nxe3 $2 16. Nf6+ (16. Qxe3 Bxd7 17. Rd6 b5 $16) 16... Kf8 17. Qxd8+ $18) 16. Bxd5 {[%emt 0:03:02]} (16. Bxh6 Qa5 17. Bg7 Rh7 (17... Rxh2 18. Rxe7+ Kxe7 19. Qg5+ Ke8 20. Qe5+ Be6 21. Qxh2 $14)) 16... cxd5 {[%emt 0:00:00] Black is weak on the dark squares} 17. Qxd5 {[%emt 0:00:12]} (17. Bxh6 $6 Be6 $11) 17... Qc7 {[%emt 0:00:00][%csl LRc3,LRh2][%cal Od7e6] Against Qe5} 18. Qd4 {[%emt 0:01:39]} Rh7 {[%emt 0:00:00][%cal Od7e6]} 19. Bf4 {[%emt 0:00:57]} Qc6 {[%emt 0:00:00][%cal Od7e6]} 20. Re5 {[%emt 0:03:30]} (20. Bb8 $5) 20... Qa4 {[%emt 0:00:00]} 21. Qb4 {[%emt 0:13:21]} Qxb4 {[%emt 0:00:00]} 22. cxb4 {[%emt 0:00:03]} f6 {[%emt 0:00:00]} 23. Rc5 {[%emt 0:01:19]} e5 {[%emt 0:00:00]} 24. Be3 {[%emt 0:00:24]} Bc6 {[%emt 0:00:00]} 25. f3 {[%emt 0:00:17]} Rd7 {[%emt 0:00:00]} 26. Rxd7 {[%emt 0:00:52]} Bxd7 $11 {[%emt 0:00:00][%mdl 4096] Endgame KRB-KRB} 27. Rc7 {[%emt 0:00:46]} b6 {[%emt 0:00:00]} 28. Bxh6 {[%emt 0:00:26]} Kd8 {[%emt 0:00:00]} 29. Rc3 {[%emt 0:00:30]} Rc8 {[%emt 0:00:00]} 30. Rd3 {[%emt 0:02:39]} Ke7 {[%emt 0:00:00]} 31. Be3 {[%emt 0:00:25]} Bf5 {[%emt 0:00:00]} 32. Rd2 {[%emt 0:00:20]} Rc4 {[%emt 0:00:00]} 33. a3 {[%emt 0:06:30]} Rc3 {[%emt 0:00:00][%csl LRa3,LRe3]} 34. Re2 {[%emt 0:01:02]} Rxa3 {[%emt 0:00:00]} 35. Kb2 {[%emt 0:00:59]} Ra4 {[%emt 0:00:00]} 36. Kb3 {[%emt 0:01:58]} Ra1 {[%emt 0:00:00]} 37. Kb2 {[%emt 0:00:17]} Ra4 {[%emt 0:00:00]} 38. Bd2 {[%emt 0:00:29]} Be6 {[%emt 0:00:00]} 39. Bc3 {[%emt 0:00:32]} Ra2+ {[%emt 0:00:00]} 40. Kb1 {[%emt 0:00:23]} Ra3 {[%emt 0:00:00]} 41. Kb2 {[%emt 0:01:42]} Ra2+ {[%emt 0:00:00]} 42. Kc1 {[%emt 0:00:08]} a5 {[%emt 0:00:00]} 43. bxa5 {[%emt 0:03:43]} bxa5 {[%emt 0:00:00]} 44. Kb1 {[%emt 0:00:37]} Ra3 {[%emt 0:00:00]} 45. Re3 {[%emt 0:00:44]} Ra4 {[%emt 0:00:00]} 46. Kc1 {[%emt 0:01:53]} Kd6 {[%emt 0:00:00]} 47. Bb2 {[%emt 0:00:38]} Rc4 {[%emt 0:00:00]} 48. Ba3+ {[%emt 0:00:19]} Kd7 {[%emt 0:00:00]} 49. Rd3+ {[%emt 0:00:52]} Kc7 {[%emt 0:00:00]} 50. Be7 {[%emt 0:00:27]} Bf5 {[%emt 0:00:00]} 51. Rd2 {[%emt 0:00:12]} Rd4 {[%emt 0:00:00]} (51... e4 $11) 52. Rxd4 $14 {[%emt 0:00:27]} exd4 {[%emt 0:00:00]} 53. Bxf6 {[%emt 0:00:55] KB-KB. White is a pawn up.} Kc6 {[%emt 0:00:00]} ({Better is} 53... a4 $14) 54. Bxd4 $18 {[%emt 0:00:15]} Kd5 {[%emt 0:00:00]} 55. Bb2 {[%emt 0:00:20]} Kc4 {[%emt 0:00:00]} (55... Bc8 $16 56. Kd2 Bd7) 56. Kd2 {[%emt 0:00:05]} Bd7 {[%emt 0:00:00]} 57. h4 {[%emt 0:00:35]} Bc6 {[%emt 0:00:00]} (57... Kd5 $142 58. Bc3 a4) 58. Ba3 {[%emt 0:00:14]} Bb7 $2 {[%emt 0:00:00] [#]} (58... Kd5 $16 {was necessary.} 59. Bb2 a4) 59. Bd6 $2 {[%emt 0:00:28]} (59. Ke3 $1 $18 {[%cal Re3f4]}) 59... a4 $2 {[%emt 0:00:00][%mdl 8192]} (59... Ba6 $16 {is more resistant.} 60. Be5 Bb7) 60. Ba3 {[%emt 0:00:20]} Bc6 $2 {[%emt 0:00:00]} (60... Bc8 61. Bc1 Ba6) 61. Be7 $2 {[%emt 0:01:39]} (61. Ke3 $18 {and the rest is easy. and Kf4 would now be decisive} Kc3 62. Kf4) 61... Bb7 $2 {[%emt 0:00:00][%mdl 8192] [#] Loses the game.} (61... Bb5 $16 62. Ba3 Kd5) 62. Ke3 $1 {[%emt 0:00:35]} Kd5 {[%emt 0:00:00]} 63. Kf4 {[%emt 0:00:14]} Ke6 {[%emt 0:00:00]} 64. Ba3 {[%emt 0:00:09]} Ba6 $2 {[%emt 0:00:00]} (64... Bd5 65. Kg5 Kf7) 65. Kg5 {[%emt 0:00:29]} Kf7 {[%emt 0:00:00]} 66. g4 {[%emt 0:00:17]} Be2 {[%emt 0:00:00]} 67. f4 {[%emt 0:00:05]} Bd1 {[%emt 0:00:00]} 68. c4 {[%emt 0:00:17][%cal Bc2c4,Bc4c5][%mdl 32]} Bb3 {[%emt 0:00:00]} 69. c5 {[%emt 0:00:05]} Bd5 {[%emt 0:00:00]} 70. h5 {[%emt 0:00:34]} gxh5 {[%emt 0:00:00]} 71. Kxh5 {[%emt 0:00:04]} Bf3 {[%emt 0:00:00]} 72. Kg5 {[%emt 0:00:05]} Ke6 {[%emt 0:00:00]} 73. f5+ {[%emt 0:00:26][%cal Bf4f5,Bf5f6][%mdl 32]} Kd5 {[%emt 0:00:00]} 74. f6 {[%emt 0:00:55] White mates.} Ke6 {[%emt 0:00:00]} 75. Kg6 {[%emt 0:00:32]} Bxg4 {[%emt 0:00:00]} 76. f7 {[%emt 0:00:04]} Bh5+ {[%emt 0:00:00]} 77. Kxh5 {[%emt 0:00:07]} Kxf7 {[%emt 0:00:00]} 78. Kg5 {[%emt 0:00:10]} Ke6 {[%emt 0:00:00]} 79. Kf4 {[%emt 0:00:05]} Kd5 {[%emt 0:00:00]} 80. Kf5 {[%emt 0:00:10]} Kc4 {[%emt 0:00:00]} 81. c6 {[%emt 0:00:07]} Kb3 {[%emt 0:00:00]} 82. Bd6 {[%emt 0:00:08] Weighted Error Value: White=0.19 (very precise) /Black=0.33  Loses game:     	---       	Black=3      Missed win:     	White=2     	---        Mistake:       	White=1     	Black=7      Inaccurate:     	White=4     	Black=4      OK:         	White=28    	Black=20     Best:        	White=2     	Black=2      Strong:       	White=1     	---} 1-0